bitfinex/quotes_BTCUSD_20250814
["timestamp","ask_amount","ask_price","bid_price","bid_amount"]
[1755191332536,0.34472,117670.0,117660.0,0.76771802]
[1755191332954,0.34472,117670.0,117660.0,0.76894802]
[1755191333177,0.34472,117670.0,117660.0,0.20716901]
[1755191333387,0.34472,117670.0,117660.0,0.77870994]
[1755191333584,0.34472,117670.0,117660.0,0.76771802]
[1755191333925,0.34472,117670.0,117660.0,0.76821109]
[1755191334128,0.35272,117670.0,117660.0,0.76921109]
[1755191334489,0.35272,117670.0,117660.0,0.20743208]
[1755191334654,0.35272,117670.0,117660.0,0.17443437]
[1755191334857,0.52984685,117670.0,117660.0,0.17247437]
[1755191335302,0.59750871,117670.0,117660.0,0.17247437]
[1755191335710,0.59750871,117670.0,117660.0,0.00249307]
[1755191335921,0.59543871,117670.0,117660.0,0.17247437]
[1755191336074,0.42547186,117670.0,117660.0,0.17247437]
[1755191336502,0.59543871,117670.0,117660.0,0.17247437]
[1755191336711,0.42547186,117670.0,117660.0,0.17247437]
[1755191336893,0.59543871,117670.0,117660.0,0.17247437]
[1755191337487,0.67816196,117670.0,117660.0,0.00249307]
[1755191338674,0.67816196,117670.0,117660.0,0.17247437]
[1755191339283,0.50819511,117670.0,117660.0,0.17247437]
[1755191339626,0.68023196,117670.0,117660.0,0.17247437]
[1755191339826,0.68023196,117670.0,117660.0,0.00249307]
[1755191339999,1.33804358,117670.0,117660.0,0.00249307]
[1755191340203,1.34246609,117670.0,117660.0,0.00249307]
[1755191340628,0.68465447,117670.0,117660.0,0.00249307]
[1755191340833,0.30321576,117670.0,117660.0,0.17443437]
[1755191341038,0.35706251,117670.0,117660.0,0.20823451]
[1755191341236,0.35664,117670.0,117660.0,0.20923451]
[1755191341483,0.35664,117670.0,117660.0,0.86827613]
[1755191341698,0.34864,117670.0,117660.0,0.86727613]
[1755191341902,0.14464,117670.0,117660.0,1.36414985]
[1755191342134,0.20701,117720.0,117700.0,0.16992353]
[1755191342344,0.29102511,117710.0,117700.0,0.16992353]
[1755191342662,0.47194157,117710.0,117700.0,0.16992353]
[1755191343068,0.16992353,117700.0,117690.0,0.17842213]
[1755191343271,0.17301353,117700.0,117680.0,0.17842546]
[1755191343475,0.17301353,117700.0,117690.0,0.00049307]
[1755191343650,0.31056353,117700.0,117690.0,0.00049307]
[1755191343853,1.0510984,117700.0,117690.0,0.00049307]
[1755191344065,1.0500984,117700.0,117690.0,0.00049307]
[1755191344271,1.0531884,117700.0,117690.0,0.00049307]
[1755191345138,1.11145176,117700.0,117690.0,0.00049307]
[1755191345357,1.13696176,117700.0,117690.0,0.00049307]
[1755191345558,1.13696176,117700.0,117690.0,0.00149307]
[1755191345776,1.09361274,117700.0,117690.0,0.00149307]
[1755191345987,0.40237678,117700.0,117690.0,0.00049307]
[1755191346191,0.40737678,117700.0,117690.0,0.00149307]
[1755191346550,0.39837678,117700.0,117690.0,0.00149307]
[1755191346753,0.40737678,117700.0,117690.0,0.00249307]
[1755191347177,1.0561884,117700.0,117690.0,0.00149307]
[1755191347816,1.07063742,117700.0,117690.0,0.00049307]
[1755191348055,1.10562742,117700.0,117690.0,0.00149307]
[1755191348699,1.11362742,117700.0,117690.0,0.00249307]
[1755191350586,1.45362742,117700.0,117690.0,0.00249307]
[1755191351213,1.46943836,117700.0,117690.0,0.00249307]
[1755191352097,1.47160836,117700.0,117690.0,0.00249307]
[1755191353503,1.49712036,117700.0,117690.0,0.00249307]
[1755191354715,0.83930874,117700.0,117690.0,0.00249307]
[1755191355097,1.49712036,117700.0,117690.0,0.00249307]
[1755191355782,1.46513036,117700.0,117690.0,0.00249307]
[1755191356602,0.80731874,117700.0,117690.0,0.00249307]
[1755191356738,1.46513036,117700.0,117690.0,0.00249307]
[1755191358279,1.44768134,117700.0,117690.0,0.00249307]
[1755191359822,1.44771323,117700.0,117690.0,0.00249307]
[1755191360435,1.65159323,117700.0,117690.0,0.00249307]
[1755191362409,1.65952531,117700.0,117690.0,0.00249307]
[1755191363063,1.66394713,117700.0,117690.0,0.00249307]
[1755191364013,1.71873383,117700.0,117690.0,0.00249307]
[1755191365752,1.7187587,117700.0,117690.0,0.00249307]
[1755191368712,1.71876634,117700.0,117690.0,0.00249307]
[1755191368910,1.57812634,117700.0,117690.0,0.00249307]
[1755191369134,1.71860634,117700.0,117690.0,0.00249307]
[1755191372179,1.70115732,117700.0,117690.0,0.00445307]
[1755191372561,0.5628657,117700.0,117690.0,0.00445307]
[1755191372769,0.52416044,117700.0,117690.0,0.00445307]
[1755191372975,0.66464044,117700.0,117690.0,0.00445307]
[1755191373446,0.66464044,117700.0,117690.0,0.17439104]
[1755191373651,0.64876628,117700.0,117690.0,0.00445307]
[1755191374595,0.66465321,117700.0,117690.0,0.00445307]
[1755191375269,0.67260124,117700.0,117690.0,0.00445307]
[1755191375471,0.66465321,117700.0,117690.0,0.00445307]
[1755191376094,0.73231507,117700.0,117690.0,0.00445307]
[1755191376305,1.39012669,117700.0,117690.0,0.00445307]
[1755191376727,1.39219669,117700.0,117690.0,0.00445307]
[1755191376934,1.39540669,117700.0,117690.0,0.00249307]
[1755191377143,1.40335474,117700.0,117690.0,0.00249307]
[1755191377758,1.42080376,117700.0,117690.0,0.00249307]
[1755191379530,0.76299214,117700.0,117690.0,0.00249307]
[1755191379756,1.42080376,117700.0,117690.0,0.00249307]
[1755191380536,1.42080374,117700.0,117690.0,0.00249307]
[1755191381949,1.35314188,117700.0,117690.0,0.00249307]
[1755191382156,1.34519385,117700.0,117690.0,0.00249307]
[1755191383000,0.66457321,117700.0,117690.0,0.00445307]
[1755191383620,0.66015139,117700.0,117690.0,0.00445307]
[1755191383776,0.51975139,117700.0,117690.0,0.17439104]
[1755191383978,0.64426446,117700.0,117690.0,0.17562104]
[1755191384171,0.64426446,117700.0,117690.0,0.00568307]
[1755191384383,0.64426446,117700.0,117690.0,0.00445307]
[1755191385031,1.30207608,117700.0,117690.0,0.00445307]
[1755191385656,1.30735608,117700.0,117690.0,0.00445307]
[1755191385805,0.64426446,117700.0,117690.0,0.00445307]
[1755191386210,0.64426446,117700.0,117690.0,0.17439104]
[1755191386422,0.64426446,117700.0,117690.0,0.21017836]
[1755191386423,0.29760325,117700.0,117690.0,0.21017836]
[1755191386611,0.35524,117700.0,117690.0,0.17562104]
[1755191387332,0.35524,117700.0,117690.0,0.20823104]
[1755191387662,0.34724,117700.0,117690.0,0.20723104]
[1755191387891,0.35024,117700.0,117690.0,0.21737563]
[1755191388056,0.35024,117700.0,117690.0,0.17562104]
[1755191388446,0.34724,117700.0,117690.0,0.17462104]
[1755191388836,0.34924,117700.0,117690.0,0.17462104]
[1755191389038,0.34924,117700.0,117690.0,0.17339104]
[1755191389482,0.34924,117700.0,117690.0,0.17462104]
[1755191390089,0.3492,117700.0,117690.0,0.20907836]
[1755191390286,0.3492,117700.0,117690.0,0.17462104]
[1755191392347,0.3492,117700.0,117690.0,0.17339104]
[1755191395292,0.3492,117700.0,117690.0,0.17462104]
[1755191395508,0.34912,117700.0,117690.0,0.83243266]
[1755191396488,0.34712,117700.0,117690.0,0.83243266]
[1755191396698,0.34712,117700.0,117690.0,0.25710547]
[1755191396897,0.34712,117700.0,117690.0,0.17462104]
[1755191397834,0.34412,117700.0,117690.0,0.17239104]
[1755191398065,0.34612,117700.0,117690.0,0.17339104]
[1755191400498,0.34612,117700.0,117690.0,0.17462104]
[1755191400928,0.34612,117700.0,117690.0,0.17339104]
[1755191401353,0.3514,117700.0,117690.0,0.17143104]
[1755191401795,0.52132353,117700.0,117690.0,0.17143104]
[1755191401998,0.60404678,117700.0,117690.0,0.00149307]
[1755191402214,1.2618584,117700.0,117690.0,0.00149307]
[1755191402833,0.60404678,117700.0,117690.0,0.00149307]
[1755191403774,0.60604678,117700.0,117690.0,0.00149307]
[1755191403966,0.60404678,117700.0,117690.0,0.00049307]
[1755191404088,0.60704678,117700.0,117690.0,0.00149307]
[1755191404301,0.46680678,117700.0,117690.0,0.17143104]
[1755191404531,0.60696678,117700.0,117690.0,0.17143104]
[1755191405181,0.29481325,117700.0,117690.0,0.20752934]
[1755191405475,0.43176325,117700.0,117690.0,0.20752934]
[1755191405690,0.34904,117700.0,117690.0,0.17339104]
[1755191408524,0.52400353,117700.0,117690.0,0.17339104]
[1755191409027,0.52400353,117700.0,117690.0,0.17143104]
[1755191409249,0.35408,117700.0,117690.0,0.17143104]
[1755191409479,0.52400353,117700.0,117690.0,0.17143104]
[1755191410258,0.60672678,117700.0,117690.0,0.00149307]
[1755191410476,1.2645384,117700.0,117690.0,0.00149307]
[1755191411115,1.2956484,117700.0,117690.0,0.00149307]
[1755191411379,1.31309742,117700.0,117690.0,0.00149307]
[1755191412052,0.6502858,117700.0,117690.0,0.00049307]
[1755191412265,1.30809742,117700.0,117690.0,0.00049307]
[1755191412471,1.32152282,117700.0,117690.0,0.00249307]
[1755191413358,1.66152282,117700.0,117690.0,0.00249307]
[1755191413490,1.67739238,117700.0,117690.0,0.00249307]
[1755191414897,1.01958076,117700.0,117690.0,0.00249307]
[1755191415105,1.67739238,117700.0,117690.0,0.00249307]
[1755191415306,1.67738965,117700.0,117690.0,0.00249307]
[1755191415545,1.66152282,117700.0,117690.0,0.00249307]
[1755191415756,1.67739001,117700.0,117690.0,0.00249307]
[1755191416212,1.70290101,117700.0,117690.0,0.00249307]
[1755191419832,0.16999575,117650.0,117640.0,0.00850051]
[1755191420065,0.14004,117650.0,117640.0,0.18061837]
[1755191420502,0.14004,117650.0,117640.0,0.18184837]
[1755191421197,0.20894407,117660.0,117650.0,0.16999575]
[1755191421422,0.08272325,117660.0,117650.0,0.17195575]
[1755191421643,0.22276325,117660.0,117650.0,0.17318575]
[1755191422101,0.19550601,117690.0,117660.0,0.1699813]
[1755191422335,0.25267566,117680.0,117670.0,0.17209143]
[1755191422567,0.39271566,117680.0,117670.0,0.16996685]
[1755191422792,0.39271566,117680.0,117670.0,0.00196]
[1755191423071,0.39271566,117680.0,117670.0,0.17192685]
[1755191423290,0.39271566,117680.0,117670.0,0.00196]
[1755191423576,0.16996685,117670.0,117660.0,0.17848036]
[1755191423782,0.16996685,117670.0,117660.0,0.18044036]
[1755191424376,0.39874566,117680.0,117670.0,0.16996685]
[1755191424575,0.39775566,117680.0,117670.0,0.16996685]
[1755191424939,0.39975566,117680.0,117670.0,0.001]
[1755191425149,0.39975566,117680.0,117670.0,0.17096685]
[1755191425351,0.39975566,117680.0,117670.0,0.17292685]
[1755191425352,0.39471566,117680.0,117670.0,0.17292685]
[1755191425547,0.22472325,117680.0,117670.0,0.17292685]
[1755191425761,0.22472325,117680.0,117670.0,0.17415685]
[1755191426096,0.39467566,117680.0,117670.0,0.17415685]
[1755191426292,0.39467566,117680.0,117670.0,0.17292685]
[1755191426501,0.39767566,117680.0,117670.0,0.17392685]
[1755191427295,0.22772325,117680.0,117670.0,0.17392685]
[1755191427497,0.39767566,117680.0,117670.0,0.17392685]
[1755191427905,0.40271566,117680.0,117670.0,0.002]
[1755191428687,1.06052728,117680.0,117670.0,0.002]
[1755191431293,0.26271566,117680.0,117670.0,0.002]
[1755191431463,0.40267566,117680.0,117670.0,0.17392685]
[1755191431668,0.39763566,117680.0,117670.0,0.00396]
[1755191431871,0.40803342,117680.0,117670.0,0.002]
[1755191432073,0.40267566,117680.0,117670.0,0.002]
[1755191432281,1.06048728,117680.0,117670.0,0.002]
[1755191435274,0.40267566,117680.0,117670.0,0.002]
[1755191436669,1.06048728,117680.0,117670.0,0.002]
[1755191439271,0.40267566,117680.0,117670.0,0.002]
[1755191439968,0.60659566,117680.0,117670.0,0.002]
[1755191440575,1.26440728,117680.0,117670.0,0.002]
[1755191443812,1.2818563,117680.0,117670.0,0.002]
[1755191444238,1.29776894,117680.0,117670.0,0.002]
[1755191445162,1.29776894,117680.0,117670.0,1e-08]
[1755191445163,1.63776894,117680.0,117670.0,1e-08]
[1755191445367,1.67764093,117680.0,117670.0,1e-08]
[1755191445482,1.72764093,117680.0,117670.0,1e-08]
[1755191445682,1.73206442,117680.0,117670.0,1e-08]
[1755191446135,1.72836563,117680.0,117670.0,1e-08]
[1755191446352,0.52744477,117650.0,117640.0,0.00014766]
[1755191446619,0.74847164,117650.0,117640.0,0.00210766]
[1755191446746,0.75344164,117650.0,117640.0,0.00210766]
[1755191447118,0.75344164,117650.0,117640.0,0.00014766]
[1755191447328,1.41125326,117650.0,117640.0,0.00014766]
[1755191447499,1.42870228,117650.0,117640.0,0.00014766]
[1755191448476,1.42970228,117650.0,117640.0,0.00114766]
[1755191448882,1.43170228,117650.0,117640.0,0.00114766]
[1755191450502,0.77389066,117650.0,117640.0,0.00114766]
[1755191450717,1.29186228,117650.0,117640.0,0.00114766]
[1755191450926,0.40458791,117650.0,117640.0,0.00310766]
[1755191451700,0.40458791,117650.0,117640.0,0.17311786]
[1755191452303,0.40458791,117650.0,117640.0,0.00310766]
[1755191453611,0.40458791,117650.0,117640.0,0.17311786]
[1755191454041,0.40458791,117650.0,117640.0,0.00310766]
[1755191454740,1.06736953,117650.0,117640.0,0.00114766]
[1755191454946,1.0832288,117650.0,117640.0,0.00114766]
[1755191455748,1.4232288,117650.0,117640.0,0.00114766]
[1755191455946,1.44067782,117650.0,117640.0,0.00114766]
[1755191456516,0.7828662,117650.0,117640.0,0.00114766]
[1755191456714,1.44067782,117650.0,117640.0,0.00114766]
[1755191459729,1.47634446,117650.0,117640.0,0.00114766]
[1755191460398,1.47534446,117650.0,117640.0,0.00014766]
[1755191460863,0.1700391,117620.0,117610.0,0.00027705]
[1755191461097,1.25926397,117620.0,117610.0,0.00027705]
[1755191461323,0.60145235,117620.0,117610.0,0.00027705]
[1755191461583,0.59851235,117620.0,117610.0,0.00223705]
[1755191461790,0.59648235,117620.0,117610.0,0.00223705]
[1755191462200,0.59748235,117620.0,117610.0,0.00323705]
[1755191462450,0.60445235,117620.0,117610.0,0.00127705]
[1755191462675,0.59948235,117620.0,117610.0,0.00323705]
[1755191463139,0.59948235,117620.0,117610.0,0.00127705]
[1755191463140,1.26226397,117620.0,117610.0,0.00127705]
[1755191463382,1.27971299,117620.0,117610.0,0.00127705]
[1755191463863,1.31863811,117620.0,117610.0,0.00127705]
[1755191464131,1.33248282,117620.0,117610.0,0.00127705]
[1755191464361,1.33148282,117620.0,117610.0,0.00027705]
[1755191464621,1.33148282,117620.0,117610.0,1e-08]
[1755191464622,1.67848282,117620.0,117610.0,1e-08]
[1755191465800,1.67448282,117620.0,117610.0,1e-08]
[1755191466041,1.68390225,117620.0,117610.0,1e-08]
[1755191466317,1.00864161,117620.0,117610.0,1e-08]
[1755191466547,1.00864161,117620.0,117600.0,0.02]
[1755191466548,0.51005356,117610.0,117600.0,0.02]
[1755191466791,0.61374152,117610.0,117600.0,0.02]
[1755191467038,1.28897617,117610.0,117600.0,0.02]
[1755191467750,1.29297617,117610.0,117600.0,0.02014778]
[1755191468015,0.63816455,117610.0,117600.0,0.02014778]
[1755191468250,1.29597617,117610.0,117600.0,0.02014778]
[1755191468691,0.52751704,117600.0,117590.0,0.01750001]
[1755191468945,1.35334738,117600.0,117590.0,0.01764781]
[1755191469405,0.54845576,117600.0,117590.0,0.01764781]
[1755191469618,0.69661576,117600.0,117590.0,0.01764781]
[1755191469863,1.43713648,117600.0,117590.0,0.01764781]
[1755191470115,0.77932486,117600.0,117590.0,0.01764781]
[1755191470342,1.43713648,117600.0,117590.0,0.01764781]
[1755191470589,0.78468262,117600.0,117590.0,0.01764781]
[1755191470830,1.44949424,117600.0,117590.0,0.01764781]
[1755191471065,0.78768262,117600.0,117590.0,0.01764781]
[1755191471294,1.44249424,117600.0,117590.0,0.01764781]
[1755191471774,2.0989481,117600.0,117590.0,1e-08]
[1755191471998,2.1276181,117600.0,117590.0,1e-08]
[1755191472231,2.3576181,117600.0,117590.0,1e-08]
[1755191472459,2.3576181,117600.0,117580.0,1e-08]
[1755191472460,1.02789411,117590.0,117580.0,1e-08]
[1755191472697,1.12853193,117590.0,117580.0,0.00049343]
[1755191472909,1.13151847,117590.0,117580.0,0.00049343]
[1755191473386,0.47370685,117590.0,117580.0,0.00049343]
[1755191473613,1.13151847,117590.0,117580.0,0.00049343]
[1755191474528,0.42650685,117590.0,117580.0,0.00049343]
[1755191474738,0.43250685,117590.0,117580.0,0.00049343]
[1755191475155,1.09031847,117590.0,117580.0,0.00049343]
[1755191475590,1.10776749,117590.0,117580.0,0.00049343]
[1755191475801,1.38535759,117580.0,117570.0,1e-08]
[1755191476009,1.48687195,117580.0,117570.0,1e-08]
[1755191476231,0.51011142,117570.0,117560.0,0.0182719]
[1755191476457,1.43683642,117570.0,117560.0,0.0182719]
[1755191476679,0.17012589,117560.0,117550.0,0.0004]
[1755191476923,0.26863025,117560.0,117550.0,0.0004]
[1755191477142,0.28908927,117560.0,117550.0,0.0004]
[1755191477356,0.42159025,117560.0,117550.0,0.17054036]
[1755191477575,0.42159025,117560.0,117550.0,0.17177036]
[1755191477576,0.25170436,117560.0,117550.0,0.17177036]
[1755191478014,0.25670436,117560.0,117550.0,0.17177036]
[1755191478187,0.16898111,117560.0,117550.0,0.17177036]
[1755191478429,0.01578111,117570.0,117560.0,0.17012589]
[1755191478645,0.16942111,117570.0,117560.0,0.17012589]
[1755191478860,0.33953253,117570.0,117560.0,0.17135589]
[1755191479067,0.42225578,117570.0,117560.0,0.00123]
[1755191479267,0.17012589,117560.0,117550.0,0.0004]
[1755191479477,0.26863025,117560.0,117550.0,0.0004]
[1755191479757,0.26963025,117560.0,117550.0,0.0004]
[1755191480188,0.26863025,117560.0,117550.0,0.0004]
[1755191480418,0.09950436,117560.0,117550.0,0.17389711]
[1755191480651,0.08372325,117560.0,117550.0,0.17177036]
[1755191480862,0.07172325,117560.0,117550.0,0.17177036]
[1755191481397,0.003,117560.0,117550.0,0.17177036]
[1755191481825,0.16942111,117570.0,117560.0,0.17012589]
[1755191482238,0.01578111,117570.0,117560.0,0.82916751]
[1755191482452,0.01586467,117590.0,117580.0,0.17009695]
[1755191482655,0.01586467,117590.0,117580.0,0.17132695]
[1755191482855,0.17034467,117590.0,117580.0,0.17132695]
[1755191483673,0.01586467,117590.0,117580.0,0.17132695]
[1755191483883,0.17458467,117590.0,117580.0,0.17232695]
[1755191484100,0.17458467,117590.0,117580.0,0.17132695]
[1755191484314,0.01986467,117590.0,117580.0,0.94125182]
[1755191484502,0.17754467,117590.0,117580.0,0.94225182]
[1755191484758,0.16176356,117590.0,117580.0,1.02473625]
[1755191484966,0.16176356,117590.0,117580.0,0.94225182]
[1755191485386,0.00708356,117590.0,117580.0,0.94225182]
[1755191485594,1e-08,117590.0,117580.0,1.29970084]
[1755191485798,0.00100001,117590.0,117580.0,1.30070084]
[1755191486008,0.00100001,117590.0,117580.0,1.29970084]
[1755191486136,0.00100001,117590.0,117580.0,1.30871896]
[1755191486349,1e-08,117590.0,117580.0,1.30871896]
[1755191486552,0.01578267,117620.0,117610.0,0.17005356]
[1755191486813,0.01627582,117620.0,117610.0,0.17128356]
[1755191487025,0.17111582,117620.0,117610.0,0.17128356]
[1755191487581,0.17111582,117620.0,117610.0,0.17005356]
[1755191487802,0.17511582,117620.0,117610.0,0.17105356]
[1755191488232,0.17511582,117620.0,117610.0,0.20209124]
[1755191488641,0.17811582,117620.0,117610.0,0.17205356]
[1755191488850,0.17779582,117620.0,117610.0,0.83109518]
[1755191489062,0.17379582,117620.0,117610.0,0.17228356]
[1755191489506,0.17479582,117620.0,117610.0,0.17428356]
[1755191490144,0.17483037,117620.0,117610.0,0.17428356]
[1755191490335,0.17483037,117620.0,117610.0,0.17305356]
[1755191490844,0.17483037,117620.0,117610.0,0.17428356]
[1755191491248,0.17483037,117620.0,117610.0,0.2087175]
[1755191491461,0.17483037,117620.0,117610.0,0.2074875]
[1755191491830,0.17483037,117620.0,117610.0,0.17305356]
[1755191492065,0.17483037,117620.0,117610.0,0.17428356]
[1755191492272,0.17483037,117620.0,117610.0,0.17305356]
[1755191492485,0.34787947,117620.0,117610.0,0.003]
[1755191492691,0.32787947,117620.0,117610.0,0.003]
[1755191492911,0.41060272,117620.0,117610.0,0.003]
[1755191494030,0.41060272,117620.0,117610.0,0.17305356]
[1755191494232,0.41060272,117620.0,117610.0,0.003]
[1755191494946,0.41496048,117620.0,117610.0,0.001]
[1755191495186,0.40960272,117620.0,117610.0,0.001]
[1755191495420,0.17005356,117610.0,117600.0,0.00212585]
[1755191495653,0.18587078,117610.0,117600.0,0.17219387]
[1755191495866,0.18487078,117610.0,117600.0,0.17006802]
[1755191496071,0.18487078,117610.0,117590.0,0.17856308]
[1755191496295,0.17006802,117600.0,117580.0,0.17132695]
[1755191496521,0.15756,117590.0,117580.0,0.25258138]
[1755191496750,0.34345971,117590.0,117580.0,0.17009695]
[1755191497196,0.17337722,117590.0,117580.0,0.17009695]
[1755191497395,0.15556,117590.0,117580.0,0.17009695]
[1755191497842,0.001,117610.0,117590.0,0.17006987]
[1755191498043,0.15732,117600.0,117590.0,0.17006987]
[1755191498278,0.15732,117600.0,117590.0,0.20546004]
[1755191499158,0.15732,117600.0,117590.0,0.86327166]
[1755191499381,0.15732,117600.0,117590.0,0.20646004]
[1755191499728,0.15732,117600.0,117590.0,0.20846004]
[1755191499822,0.15732,117600.0,117590.0,0.20646004]
[1755191500050,0.15832,117600.0,117590.0,0.20969004]
[1755191500728,0.001,117600.0,117590.0,0.20969004]
[1755191500977,0.158,117600.0,117590.0,0.95022491]
[1755191501416,0.158,117600.0,117590.0,0.29241329]
[1755191501627,0.158,117600.0,117590.0,0.25579312]
[1755191502030,0.158,117600.0,117590.0,0.17306987]
[1755191505684,0.001,117600.0,117590.0,0.83211149]
[1755191505896,0.15776,117600.0,117590.0,1.17903474]
[1755191507678,0.15776,117600.0,117590.0,0.43726987]
[1755191507906,0.16098,117600.0,117590.0,0.43726987]
[1755191508110,0.15776,117600.0,117590.0,0.43726987]
[1755191508440,0.01687482,117600.0,117590.0,1.09508149]
[1755191508575,0.17399482,117600.0,117590.0,1.09508149]
[1755191508779,0.15812,117600.0,117590.0,0.43726987]
[1755191508979,0.17399431,117600.0,117590.0,0.43726987]
[1755191509390,0.17721431,117600.0,117590.0,0.43726987]
[1755191510008,0.17399431,117600.0,117590.0,0.43726987]
[1755191510857,0.01687431,117600.0,117590.0,1.17903474]
[1755191511052,0.15784,117600.0,117590.0,1.17903474]
[1755191511358,0.15776,117600.0,117590.0,1.26151917]
[1755191511903,0.15776,117600.0,117590.0,0.99731917]
[1755191512352,0.15776,117600.0,117590.0,1.33731917]
[1755191513417,0.15776,117600.0,117590.0,0.67950755]
[1755191513624,0.15776,117600.0,117590.0,1.33608917]
[1755191513824,0.15776,117600.0,117590.0,0.59579312]
[1755191515582,0.15776,117600.0,117590.0,0.17306987]
[1755191515784,0.16098,117600.0,117590.0,0.17306987]
[1755191516582,0.33104802,117600.0,117590.0,0.17308249]
[1755191517225,0.16098,117600.0,117590.0,0.17308249]
[1755191517802,0.33104802,117600.0,117590.0,0.17308249]
[1755191518927,0.16098,117600.0,117590.0,0.17308249]
[1755191519132,0.33104802,117600.0,117590.0,0.17308249]
[1755191519536,0.33104802,117600.0,117590.0,0.17504249]
[1755191519537,0.16309,117600.0,117590.0,0.17504249]
[1755191519751,0.16309,117600.0,117590.0,0.17308249]
[1755191520004,0.15708,117600.0,117590.0,0.17504249]
[1755191520365,0.16241,117600.0,117590.0,0.17308249]
[1755191520566,0.33247802,117600.0,117590.0,0.003]
[1755191520771,0.16241,117600.0,117590.0,0.17308249]
[1755191521038,0.33247802,117600.0,117590.0,0.17308249]
[1755191521595,0.33247802,117600.0,117590.0,0.20825092]
[1755191522416,0.33247802,117600.0,117590.0,0.17308249]
[1755191523187,0.33211802,117600.0,117590.0,0.17308249]
[1755191523673,0.16205,117600.0,117590.0,0.17308249]
[1755191524115,0.00633,117600.0,117590.0,0.17308249]
[1755191524240,0.001,117600.0,117590.0,0.83285411]
[1755191524586,0.15652,117600.0,117590.0,0.91337854]
[1755191525233,0.15652,117600.0,117590.0,0.99733179]
[1755191525385,0.001,117600.0,117590.0,1.35478081]
[1755191525591,0.001,117600.0,117590.0,1.37978081]
[1755191525811,0.15636,117600.0,117590.0,1.37978081]
[1755191526027,0.001,117600.0,117590.0,1.37978081]
[1755191526210,0.204,117620.0,117610.0,0.17005356]
[1755191526530,0.35928,117620.0,117610.0,0.94582932]
[1755191526757,0.35928,117620.0,117610.0,0.94459932]
[1755191527706,0.205,117620.0,117610.0,1.30604834]
[1755191527908,1e-08,117620.0,117610.0,1.33227834]
[1755191528129,1e-08,117620.0,117610.0,1.51081215]
[1755191528334,1e-08,117620.0,117610.0,1.53402195]
[1755191528537,1e-08,117620.0,117610.0,0.79169703]
[1755191528756,1e-08,117620.0,117610.0,1.39590885]
[1755191529145,0.15564,117630.0,117620.0,0.21248812]
[1755191529479,0.15564,117630.0,117620.0,1.03686232]
[1755191530135,0.15564,117630.0,117620.0,0.3528207]
[1755191530309,0.15564,117630.0,117620.0,0.25288725]
[1755191530468,0.1587,117630.0,117620.0,0.25288725]
[1755191530670,0.15664,117630.0,117620.0,0.59488725]
[1755191530955,0.15664,117630.0,117620.0,1.25269887]
[1755191531142,0.15664,117630.0,117620.0,0.59488725]
[1755191531364,0.15764,117630.0,117620.0,0.67937168]
[1755191531570,0.1607,117630.0,117620.0,0.174164]
[1755191531868,0.1597,117630.0,117620.0,0.172164]
[1755191531998,0.1587,117630.0,117620.0,0.170164]
[1755191532198,0.15564,117630.0,117620.0,0.89939847]
[1755191532426,0.08659798,117650.0,117640.0,0.1700102]
[1755191532628,0.22636186,117650.0,117640.0,0.1700102]
[1755191532831,0.24223798,117650.0,117640.0,0.1700102]
[1755191533474,0.01893612,117650.0,117640.0,0.1700102]
[1755191533642,0.17753612,117650.0,117640.0,0.20501369]
[1755191534044,0.17953612,117650.0,117640.0,0.20601369]
[1755191534396,0.17647612,117650.0,117640.0,0.18110968]
[1755191534597,0.17427612,117650.0,117640.0,0.8379213]
[1755191534816,0.16146,117650.0,117640.0,0.1710102]
[1755191535016,0.16346,117650.0,117640.0,0.1720102]
[1755191535954,0.17933612,117650.0,117640.0,0.1720102]
[1755191536857,0.16346,117650.0,117640.0,0.1720102]
[1755191537284,0.00806,117650.0,117640.0,0.1720102]
[1755191537496,0.16128,117650.0,117640.0,0.82982182]
[1755191537792,0.16128,117650.0,117640.0,0.1720102]
[1755191537937,0.16434,117650.0,117640.0,0.1720102]
[1755191538327,0.16434,117650.0,117640.0,0.20621369]
[1755191539647,0.16128,117650.0,117640.0,0.20621369]
[1755191540296,0.16434,117650.0,117640.0,0.20621369]
[1755191540452,0.16434,117650.0,117640.0,0.1720102]
[1755191546520,0.005,117650.0,117640.0,0.1720102]
[1755191546725,0.005,117650.0,117640.0,0.82982182]
[1755191547021,0.162,117650.0,117640.0,0.91254507]
[1755191548011,0.159,117650.0,117640.0,0.91154507]
[1755191548235,0.204,117670.0,117640.0,1.34676001]
[1755191548461,0.204,117670.0,117660.0,0.82779292]
[1755191548689,0.00306,117690.0,117680.0,0.16995241]
[1755191548919,0.16022,117690.0,117680.0,0.16995241]
[1755191549140,0.16022,117690.0,117680.0,0.25243684]
[1755191549565,0.16022,117690.0,117680.0,0.25256174]
[1755191549990,0.16222,117690.0,117680.0,0.25356174]
[1755191550239,0.16222,117690.0,117680.0,0.17107731]
[1755191551137,0.16422,117690.0,117680.0,0.17107731]
[1755191551385,0.004,117690.0,117680.0,0.82888893]
[1755191551644,0.004,117690.0,117680.0,0.17107731]
[1755191551645,0.16068,117690.0,117680.0,0.17107731]
[1755191552220,0.16068,117690.0,117680.0,0.17303731]
[1755191552414,0.16068,117690.0,117680.0,0.25552174]
[1755191552862,0.16068,117690.0,117680.0,0.17303731]
[1755191553129,0.16572,117690.0,117680.0,0.17107731]
[1755191553360,0.16572,117690.0,117680.0,0.17303731]
[1755191554021,0.16068,117690.0,117680.0,0.17303731]
[1755191554231,0.16266,117690.0,117680.0,0.17107731]
[1755191554450,0.16572,117690.0,117680.0,0.17107731]
[1755191554662,0.16572,117690.0,117680.0,0.20695463]
[1755191555547,0.16572,117690.0,117680.0,0.17107731]
[1755191556120,0.00904,117690.0,117680.0,0.17107731]
[1755191556307,0.16524,117690.0,117680.0,0.17107731]
[1755191557073,0.16008,117690.0,117680.0,0.17303731]
[1755191558663,0.16506,117690.0,117680.0,0.17107731]
[1755191558877,0.16506,117690.0,117680.0,0.20602914]
[1755191559498,0.16506,117690.0,117680.0,0.17107731]
[1755191562910,1.1431947,117690.0,117680.0,0.0011249]
[1755191563164,0.31544511,117690.0,117680.0,0.17107731]
[1755191563360,0.48538308,117690.0,117680.0,0.17107731]
[1755191563531,0.48538308,117690.0,117680.0,0.0011249]
[1755191563532,1.1431947,117690.0,117680.0,0.0011249]
[1755191563981,1.1726547,117690.0,117680.0,0.0011249]
[1755191564405,0.44718122,117690.0,117680.0,0.17107731]
[1755191565412,0.48556409,117690.0,117680.0,0.0011249]
[1755191566249,0.48556409,117690.0,117680.0,0.17107731]
[1755191566427,0.48504409,117690.0,117680.0,0.17107731]
[1755191566643,0.45558409,117690.0,117680.0,0.17107731]
[1755191567196,0.28564612,117690.0,117680.0,0.17107731]
[1755191567552,0.28564612,117690.0,117680.0,0.18829981]